{"text_format":"1","workbook":"xlsx","n_sheets":1,"sheets":["_63Y0PLRQY"],"not_rendered":{"charts":0,"images":0,"macros":0,"external_links":0,"defined_names":0,"comments":0,"pivot_tables":0},"unopened":[],"bounds":{"document_bytes":16777216,"sheet_cells":100000,"rows_first":2000,"rows_last":500,"rows_between":2000,"halvings":0,"cell_chars":16384,"cell_head_chars":4096},"cells_cut":0,"cells_raw":0,"read":"whole","date_system":"1900"}

{"sheet":"_63Y0PLRQY","index":0,"n_rows":172,"n_cols":21,"rows_kept":172,"cut":false,"hidden":false,"merged":[[168,8,169,8],[166,11,167,11],[164,20,167,20],[164,17,167,17],[164,18,167,18],[168,9,169,9],[168,16,169,16],[168,12,169,12],[168,14,169,14],[168,17,169,17],[168,18,169,18],[168,20,169,20],[92,11,100,11],[101,11,102,11],[103,11,108,11],[109,11,111,11],[162,11,163,11],[154,17,163,17],[154,18,163,18],[154,20,163,20],[164,11,165,11],[137,17,153,17],[137,18,153,18],[137,20,153,20],[154,11,155,11],[156,11,157,11],[137,11,139,11],[140,11,144,11],[146,11,147,11],[148,11,149,11],[151,11,152,11],[72,17,73,17],[72,18,73,18],[72,20,73,20],[74,11,76,11],[74,17,76,17],[74,18,76,18],[74,20,76,20],[67,11,69,11],[67,17,69,17],[67,18,69,18],[60,11,61,11],[67,20,69,20],[59,20,64,20],[59,18,64,18],[59,17,64,17],[28,11,29,11],[35,11,36,11],[37,11,39,11],[27,20,39,20],[27,17,39,17],[27,18,39,18],[57,11,58,11],[40,20,58,20],[40,17,58,17],[40,18,58,18],[41,11,45,11],[47,11,49,11],[50,11,51,11],[53,11,54,11],[55,11,56,11],[1,5,1,17],[22,11,24,11],[21,17,26,17],[21,18,26,18],[21,20,26,20],[6,11,7,11],[5,20,11,20],[5,17,11,17],[5,18,11,18],[13,11,15,11],[17,11,18,11],[12,18,20,18],[12,17,20,17],[12,20,20,20],[77,20,86,20],[87,17,88,17],[87,18,88,18],[87,20,88,20],[77,11,79,11],[84,11,85,11],[77,17,86,17],[77,18,86,18],[127,17,128,17],[127,18,128,18],[127,20,128,20],[122,20,123,20],[124,17,125,17],[124,18,125,18],[124,20,125,20],[122,17,123,17],[122,18,123,18],[89,18,120,18],[89,20,120,20],[112,11,114,11],[115,11,116,11],[117,11,119,11],[89,17,120,17],[89,11,91,11],[170,20,171,20],[170,17,171,17],[170,18,171,18],[129,11,131,11],[135,11,136,11],[129,20,136,20],[129,17,136,17],[129,18,136,18],[168,15,169,15],[168,13,169,13]]}
[]
[null,null,null,null,null,"Реестр закупок Министерства цифрового развития, связи и массовых коммуникаций Приднестровской Молдавской Республики на 2021 год"]
[]
["Код по Приложению № 10 (3 знака)","Подраздел (4 знака)","Целевая статья (3 знака)","Вид расходов (3 знака)","Год формир. реестр. записи (2 знака)","Порядковый сквозной № реестр.записи в пределах календарного года ","Наименование заказчика*","Источник финансирования*","Способ определения исполнителя (поставщика, подрядчика)","Реквизиты документа (дата и №), подтверждающих основание заключения договора","Объект закупки /предмет договора*","Код статьи бюджетной классификации*","Цена договора /этапа* (Руб.ПМР)","Условия оплаты/ предоплата (размер в % от цены)","копия заключенного договора (вложение)*","Срок исполнения договора","Наименование, орган. прав. форма/Ф.И.О., ","№ заявки","Дата заявки","Цена закупки (Руб.ПМР)","Сумма заявки (Руб.ПМР)"]
[1,2,3,4,{"$f":"D5+1","v":5},{"$f":"E5+1","v":6},7,8,9,10,11,12,13,14,15,16,17,{"$f":"Q5+1","v":18},{"$f":"R5+1","v":19},{"$f":"S5+1","v":20},{"$f":"T5+1","v":21}]
["157",3007,420,397,21,1,"МЦРСиМК ПМР (ГУ ПГТРК)","РБ","малые закупки",null,"ремонт автомобиля",110350,null,null,null,null,"ООО Нонстоп","01-31/16-1021","2021-07-28",4060,17264]
[null,null,null,null,null,null,null,null,"малые закупки",null,"заправка картриджа",110360,null,null,null,null,"ЗАО Тираэт",null,null,551]
[null,null,null,null,null,null,null,null,"малые закупки",null,"комплектующие",null,null,null,null,null,"ИП Леонтьев О.А.",null,null,5690]
[null,null,null,null,null,null,null,null,"единственный поставщик","дог.№56-123 от 20.03.2013г.","электроэн.октябрь 2020 года",110730,null,null,null,null,"ЕРЭС Тирасполь",null,null,5201]
[null,null,null,null,null,null,null,null,"единственный поставщик","дог.№1030 от 14.11.2017г.","вывоз мусора июль",110750,null,null,null,null,"МУП Спецавтохозяйство",null,null,472]
[null,null,null,null,null,null,null,null,"малые закупки",null,"стройматериалы",111030,null,null,null,null,"ООО Фарба",null,null,170]
[null,null,null,null,null,null,null,null,"малые закупки",null,"услуги футб.поля",111070,null,null,null,null,"ООО ЛайтТел",null,null,1120]
["157",3007,420,397,21,2,"МЦРСиМК ПМР (ГУ ПГТРК)","РБ","малые закупки",null,"ремонт автомобиля",110350,0,"",null,"","ООО Нонстоп","01-31/16-1052","2021-08-04",4059,18012]
[null,null,null,null,null,null,null,null,"малые закупки",null,"заправка картриджа",110360,null,null,null,null,"ЗАО Тираэт",null,null,78]
[null,null,null,null,null,null,null,null,"малые закупки",null,"кард-ридер",null,null,null,null,null,null,null,null,1247]
[null,null,null,null,null,null,null,null,"малые закупки",null,"катушка для кабеля",null,null,null,null,null,"ИП Голомоз А.Г.",null,null,2720]
[null,null,null,null,null,null,null,null,"единственный поставщик","дог.№474-Т от 26.11.2012г.","тепло за март-апрель",110720,null,null,null,null,"Тирастеплоэнерго (Тирасполь)",null,null,3893]
[null,null,null,null,null,null,null,null,"единственный поставщик","дог.№56-123 от 20.03.2013г.","электроэн.октябрь",110730,null,null,null,null,"ЕРЭС Тирасполь",null,null,5851]
[null,null,null,null,null,null,null,null,"единственный поставщик","дог.№8 от 11.03.2021г.","электроэн. Июль",null,null,null,null,null,"ЕРЭС Рыбница",null,null,36]
[null,null,null,null,null,null,null,null,"единственный поставщик","дог.№10 от 01.06.2020","вода за июль",110740,null,null,null,null,"Водоснаб.и водоотв.Рыбница",null,null,31]
[null,null,null,null,null,null,null,null,"малые закупки",null,"стройматериалы",111030,null,null,null,null,"ООО Фарба",null,null,97]
[157,"0103","035","397","21","3","МЦРСиМК ПМР (аппарат)","РБ","малая закупка",null,"масло ГУР",110350,null,null,null,null,"ИП Шишин С.А.","01-31/16-1045","03.08.2021",102,1311]
[null,null,null,null,null,null,null,null,"малая закупка",null,"вода \"Парканская\" и \"Морщинская\"",110360,null,null,null,null,"ООО  \"Шериф\"",null,null,193]
[null,null,null,null,null,null,null,null,"малая закупка",null,"ТМЦ (ремонт системы отопления)",null,null,null,null,null,"ООО \"Фарба\"",null,null,271]
[null,null,null,null,null,null,null,null,"малая закупка",null,"знаки пожарной безопасности",null,null,null,null,null,"ГУИПП \"Полиграфист\"",null,null,585]
[null,null,null,null,null,null,null,null,"малая закупка",null,"замена терминала",110600,null,null,null,null,"СЗАО \"Интерднестрком\"",null,null,32]
[null,null,null,null,null,null,null,null,"единственный поставщик",null,"вывоз ТБО",110750,null,null,null,null,"МУП \"Спецавтохозяйство\"",null,null,128]
[157,3007,424,292,21,4,"МЦРСиМК ПМР (ГУ ПГ)","РБ","Малые закупки","№03-02/18/418 от 30.01.2021","Сжатый газ",110350,null,null,null,null,"ЗАО \"Метан-Авто\" ","01-31/16-1080","2021-08-11",3000,40946]
[null,null,null,null,null,null,null,null,"Малые закупки","№431 от 01.03.2021г.","Бытовая химия",110360,null,null,null,null,"ООО \"НадЛен\"",null,null,58]
[null,null,null,null,null,null,null,null,"Малые закупки","№451 от 19.07.2021г.","Стройматериалы",null,null,null,null,null,"ООО \"Фарба\"",null,null,135]
[null,null,null,null,null,null,null,null,"Единственный поставщик","№21613И от 15.04.2013г.","Интернет,мобильный интернет",110600,null,null,null,null,"СЗАО ИДК",null,null,1130]
[null,null,null,null,null,null,null,null,"Единственный поставщик","№56/809 от 13.03.2013","Подача электроэнергии",110730,null,null,null,null,"ГУП ЕРЭС",null,null,2355]
[null,null,null,null,null,null,null,null,"Единственный поставщик","№1238 от 25.08.2014","Подача питьевой воды,отвод сточных вод",110740,null,null,null,null,"ГУП \"Водоснабжение и водоотведение\"",null,null,373]
[null,null,null,null,null,null,null,null,"Единственный поставщик","№ 0108 от 10.09.2018","Вывоз твёрдых бытовых отходов",110750,null,null,null,null,"МУП \"Спецавтохозяйство г.Тирасполь\"",null,null,214]
[null,null,null,null,null,null,null,null," п.2(е) ст.17 З-на ПМР № 246-З-VII от 30.12.2020","№416 от 14.01.2020  Рег.Минфин Рег.ГС СМИ №2 от 16.01.2021, Мин.финансов рег.№157 1502 424 292 095 21 000001 0200043934 от 11.03.2021г","Полиграфическое исполнение газет",111045,null,null,null,null,"ГУИПП \"Бенд.типограф.\"Полиграфист\"",null,null,23626]
[null,null,null,null,null,null,null,null,"Малые закупки","№428 от 26.02.2021г.","ТО пожарной сигнализации",110710,null,null,null,null,"ООО \"Надзор\"",null,null,1059]
[null,null,null,null,null,null,null,null,"Малые закупки","без договора","Знаки пожарной безопасности",null,null,null,null,null,"ГУИПП \"Бендерская типография \"Полиграфист\"",null,null,116]
[null,null,null,null,null,null,null,null,"Малые закупки","без договора","Знаки электробезопасности",111070,null,null,null,null,"ООО \"Люффо\"",null,null,110]
[null,null,null,null,null,null,null,null,"Малые закупки","№452 от 06.08.2021г.","Изготовление брошюры \"Милая малая Родина\" (часть 2)",null,null,null,null,null,"ГУИПП \"Бендерская типография \"Полиграфист\"",null,null,6560]
[null,null,null,null,null,null,null,null,"Малые закупки","№20210202_2/419 от 02.02.2021","Сопровождение 1с бухг.",null,null,null,null,null,"ООО Квадро учет",null,null,2210]
["157",3007,420,397,21,5,"МЦРСиМК ПМР (ГУ ПГТРК)","РБ","малые закупки",null,"ремонт автомобиля",110350,null,null,null,null,"ООО Нонстоп","01-31/16-1085","2021-08-12",3903,32735]
[null,null,null,null,null,null,null,null,"малые закупки",null,"комплектующие",110360,null,null,null,null,"ИП Никитин М.В.",null,null,3730]
[null,null,null,null,null,null,null,null,"малые закупки",null,"журналы по технике безопасности",null,null,null,null,null,"Бендерская типография \"Полиграфист\"",null,null,300]
[null,null,null,null,null,null,null,null,"малые закупки",null,"труба профильная",null,null,null,null,null,"ООО Век",null,null,690]
[null,null,null,null,null,null,null,null,"малые закупки",null,"комплектующие",null,null,null,null,null,"ИП Гулин И.Е.",null,null,309]
[null,null,null,null,null,null,null,null,"малые закупки",null,"телефон, наушники",null,null,null,null,null,"ООО Хайтек",null,null,1160]
[null,null,null,null,null,null,null,null,"единственный поставщик","дог.№474-Т от 26.11.2012г.","тепло за апрель-май",110720,null,null,null,null,"Тирастеплоэнерго (Тирасполь)",null,null,4598]
[null,null,null,null,null,null,null,null,"единственный поставщик","дог.№56-123 от 20.03.2013г.","электроэн.сентябрь",110730,null,null,null,null,"ЕРЭС Тирасполь",null,null,5222]
[null,null,null,null,null,null,null,null,"единственный поставщик","дог.№61 от 10.02.2021","электроэнергия март-июль",null,null,null,null,null,"Слободзейская госадминистрация",null,null,45]
[null,null,null,null,null,null,null,null,"единственный поставщик","дог.№0101/20 от 22.12.2019","электроэн. июль",null,null,null,null,null,"ЕРЭС Дубоссары",null,null,234]
[null,null,null,null,null,null,null,null,"единственный поставщик","дог.№61 от 10.02.2021","водоснабжение март-июль",110740,null,null,null,null,"Слободзейская госадминистрация",null,null,32]
[null,null,null,null,null,null,null,null,"единственный поставщик","дог.№722 от 12.04.2018г.","вода за июль",null,null,null,null,null,"ГУП \"Водоснабжение и водоотведение\" Тирасполь",null,null,1020]
[null,null,null,null,null,null,null,null,"единственный поставщик","дог.№61 от 10.02.2021","вывоз мусора март-июль",110750,null,null,null,null,"Слободзейская госадминистрация",null,null,13]
[null,null,null,null,null,null,null,null,"единственный поставщик","дог. №99/20 от 01.12.2020г.","аренда за август",110760,null,null,null,null,"ЗАО Мегатранс",null,null,3367]
[null,null,null,null,null,null,null,null,"единственный поставщик","дог. №09-Т/20 от 21.05.2020г.","аренда за август",null,null,null,null,null,"ООО Хайтек",null,null,3300]
[null,null,null,null,null,null,null,null,"малые закупки",null,"торты",111070,null,null,null,null,"ЗАО Тираспольский хлебокомбинат",null,null,1527]
[null,null,null,null,null,null,null,null,"малые закупки",null,"розы",null,null,null,null,null,"ОАО Тирстекло",null,null,476]
[null,null,null,null,null,null,null,null,"малые закупки",null,"перфоратор",240120,null,null,null,null,"ИП Кравченко И.В.",null,null,1290]
[null,null,null,null,null,null,null,null,"малые закупки",null,"микроволн.печь",null,null,null,null,null,"ООО Хайтек",null,null,1519]
[157,"0103","035","397","21","6","МЦРСиМК ПМР (аппарат)","РБ","единственный поставщик",null,"услуги связи за июль 2021 г.",110600,null,null,null,null,"СЗАО \"Интерднестрком\"","01-31/16-1112","2021-08-16",2302,66595]
[null,null,null,null,null,null,null,null,"малые закупки",null,"тонер и комплектующие для картриджа",110360,null,null,null,null,"ООО \"Интерра\"",null,null,415]
[null,null,null,null,null,null,null,null,"малые закупки",null,"жесткий диск (3 шт)",null,null,null,null,null,"ООО \"Мир компьютеров\"",null,null,2520]
[null,null,null,null,null,null,null,null,"малые закупки",null,"заправка картриджа и замена комплектующих",111020,null,null,null,null,"ООО \"Интерра\"",null,null,360]
[null,null,null,null,null,null,null,null,"единственный поставщик",null,"повышение квалификации",111044,null,null,null,null,"ГУП \"УМЦ\"",null,null,71]
[null,null,null,null,null,null,null,null,"единственный поставщик","№34 от 28.07.2021 г.","работы по разработке ГИС \"Электронные платежи\"","111070 (резервный фонд)",243708,null,null,null,"ГУП \"Центр информационных технологий\"",null,null,60927]
[157,"0103","035","397","21","7","МЦРСиМК ПМР (аппарат)","РБ","малые закупки",null,"заправка картриджа",111020,null,null,null,null,"ООО \"Сот\"","01-31/16-1129","2021-08-19",800,800]
[157,"0103","035","397","21","8","МЦРСиМК ПМР (аппарат)","РБ","единственный поставщик",null,"вневедомственная охрана",111050,null,null,null,null,"ГУ  УВО МВД ПМР","01-31/16-1138","2021-08-20",5138,5138]
[157,"0103","035","397","21","9","МЦРСиМК ПМР (аппарат)","РБ","малые закупки",null,"ТМЦ ",110360,null,null,null,null,"ООО \"Стерлинг\"","01-31/16-1160","2021-08-24",100,380]
[null,null,null,null,null,null,null,null,"малые закупки",null,"ТМЦ ",null,null,null,null,null,"ООО \"Тиркабель\"",null,null,160]
[null,null,null,null,null,null,null,null,"малые закупки",null,"ТМЦ ",null,null,null,null,null,"ООО \"Люрсан\"",null,null,120]
[157,"0103","035","397","21","10","МЦРСиМК ПМР (аппарат)","РБ","малые закупки",null,"поверка счетчиков",111047,null,null,null,null,"ГУП \"ИТРМ\"","01-31/16-1172","2021-08-26",69,69]
[157,"0103","035","397","21","11","МЦРСиМК ПМР (аппарат)","РБ","малые закупки",null,"ТМЦ",110360,null,null,null,null,"ООО \"Фарба\"","01-31/16-1174","2021-08-27",61,61]
[157,"0103","035","397","21","12","МЦРСиМК ПМР (аппарат)","РБ","единственный поставщик",null,"вывоз мусора",110750,null,null,null,null,"МГУП \"Спецавтохозяйство\"","01-31/16-1196","2021-09-07",128,5266]
[null,null,null,null,null,null,null,null,"единственный поставщик",null,"вневедомственная охрана",111050,null,null,null,null,"ГУ  УВО МВД ПМР",null,null,5138]
[157,"0103","035","397","21","12","МЦРСиМК ПМР (аппарат)","РБ","малые закупки",null,"ТМЦ",110360,null,null,null,null,"ООО \"Люрсан\"","01-31/16-1201","2021-09-07",50,1610]
[null,null,null,null,null,null,null,null,"малые закупки",null,"ТМЦ",null,null,null,null,null,"ОАО \"Тирстекло\"",null,null,910]
[null,null,null,null,null,null,null,null,"малые закупки",null,"ТМЦ",null,null,null,null,null,"ОАО \"Тирстекло\"",null,null,650]
[157,3007,424,292,21,13,"МЦРСиМК ПМР (ГУ ПГ)","РБ","Малые закупки",null,"Канцтовары,химия",110360,null,null,null,null,"ООО \"Стерлинг\"","01-31/16-1225","2021-09-10",1650,36500]
[null,null,null,null,null,null,null,null,"Малые закупки",null,"Замок для стекла",null,null,null,null,null,"ИП Палади В.В.",null,null,137]
[null,null,null,null,null,null,null,null,"Малые закупки",null,"Баннер",null,null,null,null,null,"ООО \"АРТстиль\"",null,null,400]
[null,null,null,null,null,null,null,null,"Единственный поставщик",null,"Интернет,мобильный интернет",110600,null,null,null,null,"СЗАО ИДК",null,null,1012]
[null,null,null,null,null,null,null,null,"Единственный поставщик",null,"Подача электроэнергии",110730,null,null,null,null,"ГУП ЕРЭС",null,null,2210]
[null,null,null,null,null,null,null,null,"Единственный поставщик",null,"Подача питьевой воды,отвод сточных вод",110740,null,null,null,null,"ГУП \"Водоснабжение и водоотведение\"",null,null,460]
[null,null,null,null,null,null,null,null,"Единственный поставщик",null,"Вывоз твёрдых бытовых отходов",110750,null,null,null,null,"МУП \"Спецавтохозяйство г.Тирасполь\"",null,null,214]
[null,null,null,null,null,null,null,null,"Малые закупки",null,"гидропневматическая промывка системы отопления",110710,null,null,null,null,"ООО \"Триэл\"",null,null,2925]
[null,null,null,null,null,null,null,null,"Малые закупки",null,"Обучение сотрудника пож-тех.минимуму",null,null,null,null,null,"ГУП \"Пожарная безопасность\"",null,null,217]
[null,null,null,null,null,null,null,null," п.2(е) ст.17 З-на ПМР № 246-З-VII от 30.12.2020",null,"Полиграфическое исполнение газет",111045,null,null,null,null,"ГУИПП \"Бенд.типограф.\"Полиграфист\"",null,null,27275]
[157,1502,424,292,21,14,"МЦРСиМК ПМР (ГУ ПГ)","РБ","Единственный поставщик",null,"Оказание услуг электросвязи",110600,null,null,null,null,"СЗАО \"Интерднестрком\"","01-31/16-1219",44448,1390,{"$f":"T88+T89","v":103997}]
[null,null,null,null,null,null,null,null,"п.п. е) п.2 ст. 17 \"Закона о РБ на 2021 год\"",null,"Полиграфическое исполнение газет",111045,null,null,null,null,"ГУИПП \"Бендерская типогравия \"Полиграфист\"",null,null,102607]
["157",3007,420,397,21,15,"МЦРСиМК ПМР (ГУ ПГТРК)","РБ","малые закупки",null,"ремонт автомобиля",110350,null,null,null,null,"ООО Нонстоп","01-31/16-1232",44450,3048,52365]
[null,null,null,null,null,null,null,null,"малые закупки",null,"зап.части",null,null,null,null,null,"ООО Иван да Марья",null,null,678]
[null,null,null,null,null,null,null,null,"малые закупки",null,"ГО Молдова",null,null,null,null,null,"ЗАО СК Арион",null,null,1791]
[null,null,null,null,null,null,null,null,"малые закупки",null,"диск отрезной",110360,null,null,null,null,"ООО Фарба ",null,null,281]
[null,null,null,null,null,null,null,null,"малые закупки",null,"WEB-камера",null,null,null,null,null,"ЗАО Тираэт",null,null,344]
[null,null,null,null,null,null,null,null,"малые закупки",null,"наушники, звуковая карта",null,null,null,null,null,null,null,null,4540]
[null,null,null,null,null,null,null,null,"малые закупки",null,"лак для волос",null,null,null,null,null,"ООО Космопроф",null,null,1486]
[null,null,null,null,null,null,null,null,"малые закупки",null,"кронштейн",null,null,null,null,null,"ООО Хайтек",null,null,569]
[null,null,null,null,null,null,null,null,"малые закупки",null,"дезинфектор",null,null,null,null,null,"ООО Шериф",null,null,1918]
[null,null,null,null,null,null,null,null,"малые закупки",null,"путевые листы",null,null,null,null,null,"ИП Стародубцева И.А.",null,null,400]
[null,null,null,null,null,null,null,null,"малые закупки",null,"экран для кондиц., аппликация на ПТС",null,null,null,null,null,"Рекламные технологии",null,null,10271]
[null,null,null,null,null,null,null,null,"малые закупки",null,"телефон",null,null,null,null,null,"ООО Хайтек",null,null,259]
[null,null,null,null,null,null,null,null,"единственный поставщик",null,"подключение номера, замена терминала",110600,null,null,null,null,"СЗАО ИДК",null,null,{"$f":"346+32","v":378}]
[null,null,null,null,null,null,null,null,"единственный поставщик",null,"ремонт оптоволокна",null,null,null,null,null,"ООО СОТ",null,null,3030]
[null,null,null,null,null,null,null,null,"единственный поставщик","дог.№56-123 от 20.03.2013г.","электроэн.февраль ",110730,null,null,null,null,"ЕРЭС Тирасполь",null,null,3000]
[null,null,null,null,null,null,null,null,"единственный поставщик","дог.№24/467 от 19.08.2015","электроэнергия август",null,null,null,null,null,"ГУП ЕРЭС Григориополь",null,null,146]
[null,null,null,null,null,null,null,null,"единственный поставщик","дог.№0101/20 от 22.12.2019","электроэн. Август",null,null,null,null,null,"ЕРЭС Дубоссары",null,null,258]
[null,null,null,null,null,null,null,null,"единственный поставщик","дог.№8 от 11.03.2021г.","электроэн. август",null,null,null,null,null,"ЕРЭС Рыбница",null,null,35]
[null,null,null,null,null,null,null,null,"единственный поставщик","дог.№61 от 10.02.2021","электроэнергия август",null,null,null,null,null,"Слободзейская госадминистрация",null,null,8]
[null,null,null,null,null,null,null,null,"единственный поставщик","дог.№21/03 Б/П от 22.01.2021","электроэнергия август",null,null,null,null,null,"Каменская госадминистрация",null,null,105]
[null,null,null,null,null,null,null,null,"единственный поставщик","дог.№21/03 Б/П от 22.01.2021","вода за август",110740,null,null,null,null,"Каменская госадминистрация",null,null,8]
[null,null,null,null,null,null,null,null,"единственный поставщик","дог.№61 от 10.02.2021","вода за август",null,null,null,null,null,"Слободзейская госадминистрация",null,null,7]
[null,null,null,null,null,null,null,null,"единственный поставщик","дог.№722 от 12.04.2018г.","вода за август",null,null,null,null,null,"ГУП \"Водоснабжение и водоотведение\" Тирасполь",null,null,794]
[null,null,null,null,null,null,null,null,"единственный поставщик","дог.№21/03 Б/П от 22.01.2021","вывоз мусора август",110750,null,null,null,null,"Каменская госадминистрация",null,null,10]
[null,null,null,null,null,null,null,null,"единственный поставщик","дог.№61 от 10.02.2021","вывоз мусора за август",null,null,null,null,null,"Слободзейская госадминистрация",null,null,3]
[null,null,null,null,null,null,null,null,"единственный поставщик","дог.№1030 от 14.11.2017г.","вывоз мусора август",null,null,null,null,null,"МУП Спецавтохозяйство",null,null,471]
[null,null,null,null,null,null,null,null,"единственный поставщик","дог. №99/20 от 01.12.2020г.","аренда за сентябрь",110760,null,null,null,null,"ЗАО Мегатранс",null,null,3367]
[null,null,null,null,null,null,null,null,"единственный поставщик","дог. №09-Т/20 от 21.05.2020г.","аренда за сентябрь",null,null,null,null,null,"ООО Хайтек",null,null,3300]
[null,null,null,null,null,null,null,null,"единственный поставщик",null,"обучение персонала",111070,null,null,null,null,"ГУП УМЦ",null,null,467]
[null,null,null,null,null,null,null,null,"единственный поставщик",null,"участие в чемпионате по мини-футболу",null,null,null,null,null,"РСОО ЛМФП",null,null,7000]
[null,null,null,null,null,null,null,null,"малые закупки",null,"услуги футб.поля",null,null,null,null,null,"ООО ЛайтТел",null,null,1120]
[null,null,null,null,null,null,null,null,"малые закупки",null,"жесткий диск",240120,null,null,null,null,"ЗАО Тираэт",null,null,3273]
[157,"0103","035","397","21","16","МЦРСиМК ПМР (аппарат)","РБ","единственный поставщик",null,"услуги связи ",110600,null,null,null,null,"СЗАО \"Интерднестрком\"","01-31/16-1228","10.09.2021 г.",4181,4181]
[157,"0103","035","397","21","17","МЦРСиМК ПМР (аппарат)","РБ","малые закупки",null,"сжатый газ",110350,null,null,null,null,"ЗАО \"Метан-Авто\" ","01-31/16-1249","15.09.2021 г.",1500,1596]
[null,null,null,null,null,null,null,null,"малые закупки",null,"поверка счетчиков",111047,null,null,null,null,"ГУП ИТРМ",null,null,96]
[157,"0103","035","397","21","18","МЦРСиМК ПМР (аппарат)","РБ","малые закупки",null,"шиномонтаж",110350,null,null,null,null,"ООО \"А-центр\"","01-31/16-1271","22.09.2021 г.",97,232]
[null,null,null,null,null,null,null,null,"малые закупки",null,"ТМЦ",110360,null,null,null,null,"ИП Жданов Н.П.",null,null,135]
["157","0103","035","397","21","19","МЦРСиМК ПМР (аппарат)","РБ","малые закупки",null,"заправка картриджа",110360,null,null,null,null,"ЗАО \"Тираэт\"","01-31/16-1274","22.09.2021 г.",197,197]
["157","0103","035","397","21","20","МЦРСиМК ПМР (аппарат)","РБ","малые закупки",null,"ТМЦ",110360,null,null,null,null,"ИП Жданова Н.П.","01-31/16-1290","24.09.2021 г.",160,5297]
[null,null,null,null,null,null,null,null,"единственный поставщик",null,"вневедомственная охрана",111050,null,null,null,null,"ГУ  УВО МВД ПМР",null,null,5137]
[157,3007,424,292,21,21,"МЦРСиМК ПМР (ГУ ПГ)","РБ","Малые закупки",null,"Автозапчасти",110350,null,null,null,null,"ООО \"Иван да Марья\"","01-31/16-1272","22.09.2021 г.",184,30775]
[null,null,null,null,null,null,null,null,"Малые закупки",null,"Смазочные материалы",null,null,null,null,null,"ООО \"Иван да Марья\"",null,null,213]
[null,null,null,null,null,null,null,null,"Малые закупки",null,"Сжатый газ",null,null,null,null,null,"ЗАО \"Метан-Авто\" ",null,null,3000]
[null,null,null,null,null,null,null,null,"Малые закупки",null,"Оборудование,комплектующие,расх.материалы",110360,null,null,null,null,"ООО \"Мир компьютеров\"",null,null,180]
[null,null,null,null,null,null,null,null,"Малые закупки",null,"реставрация рекламного банера",111020,null,null,null,null,"ООО \"АРТстиль\"",null,null,253]
[null,null,null,null,null,null,null,null,"Малые закупки",null,"Фотобумага (для дипломов учасникам конкурсов)",111070,null,null,null,null,"ООО \"Стерлинг\"",null,null,148]
[null,null,null,null,null,null,null,null,"Малые закупки",null,"Оборудование,комплектующие,расх.материалы",240120,null,null,null,null,"ООО \"Мир компьютеров\"",null,null,{"$f":"11500+5400","v":16900}]
[null,null,null,null,null,null,null,null,"Малые закупки",null,"Приобретение оборудования",null,null,null,null,null,"ЗАО \"ТирАЭТ\"",null,null,{"$f":"2460+7437","v":9897}]
["157",3007,420,397,21,22,"МЦРСиМК ПМР (ГУ ПГТРК)","РБ","малые закупки",null,"ремонт автомобиля",110350,null,null,null,null,"ООО Нонстоп","01-31/16-1266","21.09.2021 г.",3048,20231]
[null,null,null,null,null,null,null,null,"малые закупки",null,"зап.части",null,null,null,null,null,"ООО Иван да Марья",null,null,1415]
[null,null,null,null,null,null,null,null,"малые закупки",null,"огнетушитель",null,null,null,null,null,"ООО Пожтехника",null,null,654]
[null,null,null,null,null,null,null,null,"малые закупки",null,"журналы регистрации",110360,null,null,null,null,"Полиграфист",null,null,450]
[null,null,null,null,null,null,null,null,"малые закупки",null,"бумага",null,null,null,null,null,"ООО Стерлинг",null,null,1163]
[null,null,null,null,null,null,null,null,"малые закупки",null,"канцтовары",null,null,null,null,null,"ИП Обертун О.Н.",null,null,551]
[null,null,null,null,null,null,null,null,"малые закупки",null,"полосы МДФ",null,null,null,null,null,"ООО Мартин",null,null,928]
[null,null,null,null,null,null,null,null,"малые закупки",null,"телефон",null,null,null,null,null,"ООО Хайтек",null,null,854]
[null,null,null,null,null,null,null,null,"единственный поставщик",null,"услуги связи",110600,null,null,null,null,"СЗАО ИДК",null,null,{"$f":"112+112+168+168+500+400+240+225+225+220","v":2370}]
[null,null,null,null,null,null,null,null,"единственный поставщик",null,"перезарядка, утилизация огнетушителей",110710,null,null,null,null,"ООО Пожтехника",null,null,{"$f":"20+90","v":110}]
[null,null,null,null,null,null,null,null,"малые закупки",null,"ремонт, тех.обслуж. кондиц.",null,null,null,null,null,"ИП Кузенко В.М.",null,null,{"$f":"1600+450","v":2050}]
[null,null,null,null,null,null,null,null,"единственный поставщик","дог.№56-123 от 20.03.2013г.","электроэн.февраль ",110730,null,null,null,null,"ЕРЭС Тирасполь",null,null,3021]
[null,null,null,null,null,null,null,null,"единственный поставщик","дог.№24/467 от 19.08.2015","электроэнергия сентябрь",null,null,null,null,null,"ГУП ЕРЭС Григориополь",null,null,136]
[null,null,null,null,null,null,null,null,"единственный поставщик","дог.№10 от 01.06.2020","вода за август",110740,null,null,null,null,"Водоснаб.и водоотв.Рыбница",null,null,20]
[null,null,null,null,null,null,null,null,"единственный поставщик",null,"услуги телевидения",111070,null,null,null,null,"СЗАО ИДК",null,null,60]
[null,null,null,null,null,null,null,null,"единственный поставщик",null,"обучение персонала",null,null,null,null,null,"ГУП УМЦ",null,null,101]
[null,null,null,null,null,null,null,null,"малые закупки",null,"пылесос",240120,null,null,null,null,"ООО Хелиос",null,null,3300]
["157",3007,420,397,21,23,"МЦРСиМК ПМР (ГУ ПГТРК)","РБ","малые закупки",null,"ремонт автомобиля",110350,null,null,null,null,"ООО Нонстоп","01-31/16-1306","28.09.2021 г.",3049,13412]
[null,null,null,null,null,null,null,null,"малые закупки",null,"техосмотр Т467НС",null,null,null,null,null,"ГУП Спецтехника и снаряжение",null,null,110]
[null,null,null,null,null,null,null,null,"малые закупки",null,"заправка кртриджа",110360,null,null,null,null,"ЗАО Тираэт",null,null,78]
[null,null,null,null,null,null,null,null,"малые закупки",null,"комплектующие",null,null,null,null,null,"ИП Никитин М.В.",null,null,1684]
[null,null,null,null,null,null,null,null,null,null,"июль-сентябрь 2021г.",110420,null,null,null,null,"командировочные расходы",null,null,3128]
[null,null,null,null,null,null,null,null,"единственный поставщик","дог.№110 от 30.12.20","дератизация сентябрь",110710,null,null,null,null,"ГУП РЦПД",null,null,162]
[null,null,null,null,null,null,null,null,"единственный поставщик","дог.№56-123 от 20.03.2013г.","электроэн.февраль ",110730,null,null,null,null,"ЕРЭС Тирасполь",null,null,3000]
[null,null,null,null,null,null,null,null,"единственный поставщик","дог.№1030 от 14.11.2017г.","вывоз мусора сентябрь",110750,null,null,null,null,"МУП Спецавтохозяйство",null,null,473]
[null,null,null,null,null,null,null,null,"единственный поставщик",null,"прогноз погоды 3 кв ",111070,null,null,null,null,"ГУ Республиканский гидрометцентр",null,null,307]
[null,null,null,null,null,null,null,null,"единственный поставщик",null,"обучение персонала",null,null,null,null,null,"ГУП УМЦ",null,null,1421]
[157,1501,420,397,21,24,"МЦРСиМК ПМР (ГУ ПГТРК)","РБ","единственный поставщик","дог.№67012И от 17.09.2012г.","услуги связи",110600,null,null,null,null,"СЗАО \"Интерднестрком\"","01-31/16-1265","21.09.2021 г.",2138,13137]
[null,null,null,null,null,null,null,null,"единственный поставщик","дог.№103327 от 17.09.2012г.","Интернет",null,null,null,null,null,"СЗАО \"Интерднестрком\"",null,null,7234]
[null,null,null,null,null,null,null,null,"единственный поставщик","№026 от 21.12.20 г.","вневедомственная охрана за июль 2021 г.",111050,null,null,null,null,"ГУ \"УВО МВД ПМР\"  (Дубоссары)",null,null,1226]
[null,null,null,null,null,null,null,null,"единственный поставщик","№ 00640 от 22.12.20 г.","вневедомственная охрана за июль 2021 г.",null,null,null,null,null,"ГУ \"УВО МВД ПМР\" ",null,null,2539]
[157,1501,420,397,21,25,"МЦРСиМК ПМР (ГУ ПГТРК)","РБ","открытый аукцион","Контракт №59 от 10.06.2021 г.","комплектующие ",110360,1162385.9199999999,null,"http://mincifra.gospmr.org/wp-content/uploads/2021/06/%D0%BA%D0%BE%D0%BD%D1%82%D1%80%D0%B0%D0%BA%D1%82-59.pdf",null,"ЗАО \"Тираэт\"","01-31/16-1305","28.09.2021 г.",2008,101548]
[null,null,null,null,null,null,null,null,null,null,"оборудование",240120,null,null,null,null,null,null,null,99540]
["157","0103","035","397","21","20","МЦРСиМК ПМР (аппарат)","РБ","малые закупки","Договор №66 от 05.07.2021 г., дополнительное соглашение №1 от 20.09.2021 г.","разработка проектной документации по объекту: «Капитальный ремонт части помещений (подвал) и благоустройство прилегающей территории административного здания, расположенного по адресу: г. Тирасполь, переулок Энгельса, 5»",111070,21210,null,null,null,"ООО \"ВВБ Инжиниринг\"","01-31/16-1328","01.10.2021 г.",21210,21258]
[null,null,null,null,null,null,null,null,"малые закупки",null,"Кран шаровой полнопроходной ",110360,null,null,null,null,"ООО \"Люрсан\"",null,null,48]